bitfinex/quotes_BTCUSD_20240905
["timestamp","ask_amount","ask_price","bid_price","bid_amount"]
[1725545582777,0.199735,56933.0,56932.0,0.023]
[1725545583039,0.17565,56932.0,56930.0,0.024638]
[1725545583301,0.02460392,56933.0,56930.0,0.024638]
[1725545583531,0.001,56940.0,56933.0,0.1758]
[1725545583770,0.001,56940.0,56937.0,0.17563]
[1725545584020,0.000819,56943.0,56940.0,0.175623]
[1725545584256,0.000819,56943.0,56941.0,0.17913084]
[1725545584526,0.176433,56943.0,56942.0,0.023]
[1725545584766,0.000819,56943.0,56942.0,0.023]
[1725545585007,0.000819,56943.0,56938.0,0.351254]
[1725545585232,0.000819,56943.0,56941.0,0.1425]
[1725545585475,0.175617,56942.0,56941.0,0.1425]
[1725545585717,0.000819,56943.0,56933.0,0.1758]
[1725545585994,0.3064,56938.0,56931.0,0.001638]
[1725545586234,0.87841,56921.0,56920.0,0.53778155]
[1725545586472,1.23473364,56921.0,56920.0,0.0112764]
[1725545586961,0.87841,56921.0,56920.0,0.0112764]
[1725545587207,2.96151264,56921.0,56920.0,0.0112764]
[1725545587457,3.31287664,56921.0,56920.0,0.0112764]
[1725545587947,4.17224064,56921.0,56920.0,0.0122764]
[1725545588481,1.93770864,56912.0,56911.0,0.0107856]
[1725545588716,3.05838264,56912.0,56911.0,0.0107856]
[1725545588952,3.64630164,56912.0,56911.0,0.0107856]
[1725545590344,2.433008,56906.0,56905.0,0.00013]
[1725545590573,6.06843711,56906.0,56905.0,0.00013]
[1725545590830,5.53613064,56906.0,56905.0,0.00013]
[1725545591057,4.03613064,56906.0,56905.0,0.00013]
[1725545591292,3.89418064,56906.0,56905.0,0.00013]
[1725545591538,3.27028964,56906.0,56905.0,0.00013]
[1725545591775,0.527184,56906.0,56905.0,0.00013]
[1725545592024,1.84302943,56906.0,56905.0,0.00013]
[1725545592276,0.89724243,56906.0,56905.0,0.00013]
[1725545592511,1.37027143,56906.0,56905.0,0.00013]
[1725545593009,2.03622043,56906.0,56905.0,0.00013]
[1725545593264,1.60015443,56906.0,56905.0,0.00013]
[1725545593507,1.47021943,56906.0,56905.0,0.00013]
[1725545593736,1.23469843,56906.0,56905.0,0.00013]
[1725545593995,0.89024243,56906.0,56905.0,0.00013]
[1725545594238,0.53878643,56906.0,56905.0,0.00013]
[1725545594482,0.175724,56908.0,56905.0,0.18363]
[1725545594710,0.1,56915.0,56906.0,0.015]
[1725545594940,0.351434,56910.0,56906.0,0.015]
[1725545595202,0.175723,56908.0,56906.0,0.015]
[1725545595438,0.351434,56910.0,56906.0,0.015]
[1725545595940,0.87864,56906.0,56905.0,0.00013]
[1725545596196,2.23491764,56906.0,56905.0,0.00013]
[1725545596447,2.23491764,56906.0,56905.0,0.001768]
[1725545596695,2.01158564,56906.0,56905.0,0.001768]
[1725545596974,2.01858564,56906.0,56905.0,0.001768]
[1725545597410,2.01158564,56906.0,56905.0,0.001768]
[1725545597652,1.86081964,56906.0,56905.0,0.001768]
[1725545597882,0.351422,56912.0,56905.0,0.001768]
[1725545598118,0.231811,56911.0,56905.0,0.001768]
[1725545598373,0.1667,56916.0,56905.0,0.001768]
[1725545598618,0.331954,56915.0,56905.0,0.001768]
[1725545598858,0.155298,56914.0,56906.0,0.1836]
[1725545599103,0.351408,56914.0,56907.0,0.023]
[1725545599347,0.175718,56910.0,56907.0,0.023]
[1725545599616,0.351399,56916.0,56908.0,0.175721]
[1725545599841,0.175706,56914.0,56909.0,0.023]
[1725545600092,0.52302364,56923.0,56909.0,0.00351408]
[1725545600372,0.52302364,56923.0,56907.0,0.023]
[1725545600373,0.35134,56925.0,56910.0,0.02651408]
[1725545600633,0.175676,56923.0,56918.0,0.175691]
[1725545600928,0.000819,56938.0,56925.0,0.351337]
[1725545601133,0.000819,56938.0,56919.0,0.1592]
[1725545601134,0.175653,56931.0,56926.0,0.023]
[1725545601377,0.000819,56938.0,56926.0,0.023]
[1725545601610,0.175655,56930.0,56925.0,0.01651316]
[1725545601846,0.351267,56937.0,56926.0,0.351332]
[1725545602098,0.000819,56938.0,56921.0,0.1362]
[1725545602353,0.175643,56934.0,56925.0,0.351336]
[1725545602593,0.003,56931.0,56921.0,0.1362]
[1725545602830,0.003,56931.0,56927.0,0.175661]
[1725545603080,0.003,56931.0,56921.0,0.1362]
[1725545603849,0.00445744,56938.0,56922.0,0.20219012]
[1725545603850,0.175661,56928.0,56922.0,0.20219012]
[1725545604081,0.35571744,56938.0,56922.0,0.02651312]
[1725545604082,0.351305,56931.0,56922.0,0.02651312]
[1725545604347,0.009819,56938.0,56922.0,0.02651312]
[1725545604616,0.009819,56938.0,56922.0,0.023]
[1725545604617,0.351335,56926.0,56922.0,0.023]
[1725545604870,0.175699,56916.0,56914.0,0.1389]
[1725545605093,0.00363844,56925.0,56913.0,0.1708]
[1725545605094,0.351361,56922.0,56913.0,0.1708]
[1725545605369,0.351361,56922.0,56906.0,0.1705]
[1725545605370,0.00363844,56921.0,56906.0,0.1705]
[1725545605626,0.00363844,56921.0,56907.0,0.52650515]
[1725545605627,0.35632364,56917.0,56907.0,0.52650515]
[1725545605870,0.175728,56906.0,56896.0,0.17214]
[1725545606104,0.87864,56906.0,56896.0,0.347898]
[1725545606344,0.351398,56916.0,56897.0,0.00351456]
[1725545606345,0.351445,56908.0,56897.0,0.00351456]
[1725545606570,0.175728,56906.0,56901.0,0.175741]
[1725545606809,0.175728,56906.0,56896.0,0.17214]
[1725545606810,0.351403,56915.0,56902.0,0.00339162]
[1725545607068,0.309,56920.0,56905.0,0.177498]
[1725545607354,0.35632364,56912.0,56905.0,0.001768]
[1725545607604,0.175725,56907.0,56906.0,0.023]
[1725545607861,0.309,56920.0,56905.0,0.001768]
[1725545607862,0.175728,56906.0,56905.0,0.001768]
[1725545608090,0.87864,56906.0,56905.0,0.001768]
[1725545608345,1.230096,56906.0,56905.0,0.001768]
[1725545608889,2.485062,56906.0,56905.0,0.001768]
[1725545609121,3.50875,56906.0,56905.0,0.001768]
[1725545611297,3.860206,56906.0,56905.0,0.001768]
[1725545611527,4.311662,56906.0,56905.0,0.001768]
[1725545611982,4.31139679,56906.0,56905.0,0.001768]
[1725545612946,3.95994079,56906.0,56905.0,0.001768]
[1725545613206,2.31713379,56906.0,56905.0,0.001768]
[1725545613454,1.33064979,56906.0,56905.0,0.001768]
[1725545613701,0.18528179,56906.0,56905.0,0.002768]
[1725545613925,0.53673779,56906.0,56905.0,0.002768]
[1725545614410,0.53673779,56906.0,56905.0,0.695561]
[1725545614411,0.009819,56906.0,56905.0,0.695561]
[1725545614634,0.000819,56906.0,56905.0,1.069023]
[1725545615213,0.000819,56906.0,56905.0,0.001768]
[1725545615214,0.003819,56906.0,56905.0,0.001768]
[1725545615438,0.003819,56906.0,56905.0,1.185323]
[1725545615935,0.003819,56906.0,56905.0,0.833861]
[1725545616409,0.003819,56906.0,56905.0,0.505399]
[1725545616693,0.531003,56906.0,56905.0,0.001768]
[1725545616933,0.003819,56906.0,56905.0,0.001768]
[1725545617412,0.179547,56906.0,56905.0,0.001768]
[1725545617636,0.531003,56906.0,56905.0,0.001768]
[1725545617870,1.230915,56906.0,56905.0,0.001768]
[1725545618353,1.701471,56906.0,56905.0,0.001768]
[1725545618605,1.231915,56906.0,56905.0,0.005768]
[1725545618829,1.583371,56906.0,56905.0,0.005768]
[1725545619081,1.230915,56906.0,56905.0,0.001768]
[1725545619753,1.386834,56906.0,56905.0,0.011768]
[1725545620234,1.231915,56906.0,56905.0,0.011768]
[1725545620746,2.746427,56882.0,56881.0,0.00164]
[1725545620979,3.005427,56882.0,56881.0,0.00164]
[1725545621245,3.39303364,56882.0,56881.0,0.00164]
[1725545621465,1.730747,56876.0,56875.0,0.00164]
[1725545621695,1.730747,56876.0,56866.0,0.00164]
[1725545621696,1.172045,56867.0,56866.0,0.00164]
[1725545621922,2.66877798,56867.0,56866.0,0.00164]
[1725545622140,7.87961501,56867.0,56866.0,0.00164]
[1725545622398,1.89324,56849.0,56842.0,0.52650515]
[1725545622612,3.07281764,56849.0,56842.0,0.52650515]
[1725545622848,0.5,56846.0,56825.0,0.1826]
[1725545623091,0.527926,56826.0,56825.0,0.1826]
[1725545623308,0.879877,56826.0,56825.0,0.1826]
[1725545623540,0.17597,56828.0,56825.0,0.1826]
[1725545623789,0.5,56852.0,56825.0,0.18611914]
[1725545624055,0.52650515,56846.0,56830.0,0.01]
[1725545624311,0.35632364,56859.0,56837.0,0.1788]
[1725545624553,0.35632364,56859.0,56843.0,0.175923]
[1725545624554,0.52650515,56851.0,56843.0,0.175923]
[1725545624770,0.1447,56863.0,56837.0,0.1788]
[1725545624771,0.35632364,56865.0,56844.0,0.00351784]
[1725545625008,0.35632364,56865.0,56845.0,0.023]
[1725545625009,0.175909,56848.0,56845.0,0.023]
[1725545625229,0.52650515,56861.0,56845.0,0.023]
[1725545625230,0.351789,56853.0,56846.0,0.00339864]
[1725545625469,0.351713,56865.0,56856.0,0.17588]
[1725545625711,0.52650515,56864.0,56857.0,0.02651706]
[1725545625916,0.1398,56894.0,56863.0,0.1798]
[1725545626142,0.52650515,56873.0,56872.0,0.175833]
[1725545626374,0.35632364,56891.0,56863.0,0.1698]
[1725545626597,0.351562,56889.0,56873.0,0.1746]
[1725545626817,0.52650515,56890.0,56876.0,0.351641]
[1725545627048,0.49432364,56901.0,56877.0,0.023]
[1725545627281,0.175791,56886.0,56880.0,0.175807]
[1725545627545,0.49432364,56901.0,56881.0,0.023]
[1725545627761,0.35632364,56896.0,56881.0,0.023]
[1725545627974,0.17325844,56895.0,56881.0,0.023]
[1725545628198,0.351556,56890.0,56879.0,0.023]
[1725545628421,0.35714264,56906.0,56881.0,0.351609]
[1725545628633,0.35714264,56906.0,56880.0,0.1435]
[1725545628634,0.52650515,56903.0,56884.0,0.351592]
[1725545628850,0.35714264,56906.0,56886.0,0.351579]
[1725545628851,0.32895844,56902.0,56886.0,0.351579]
[1725545629061,0.00363844,56902.0,56882.0,0.3516]
[1725545629284,0.00363844,56904.0,56888.0,0.351566]
[1725545629505,0.175754,56898.0,56892.0,0.175771]
[1725545629726,0.000819,56906.0,56890.0,0.175777]
[1725545629727,0.00445744,56906.0,56890.0,0.175777]
[1725545629942,0.175771,56892.0,56891.0,0.023]
[1725545630161,0.351525,56895.0,56891.0,0.023]
[1725545630405,0.351525,56895.0,56890.0,0.023]
[1725545630640,0.000819,56906.0,56893.0,0.139]
[1725545630854,0.52650515,56904.0,56893.0,0.139]
[1725545631081,0.000819,56906.0,56893.0,0.139]
[1725545631604,0.001,56895.0,56894.0,0.175765]
[1725545631804,0.001,56895.0,56894.0,0.878825]
[1725545632075,0.000819,56906.0,56893.0,0.139]
[1725545632319,0.000819,56906.0,56905.0,0.175731]
[1725545632595,0.000819,56906.0,56905.0,0.1913]
[1725545632805,0.000819,56906.0,56905.0,0.718493]
[1725545633290,0.000819,56906.0,56905.0,1.069955]
[1725545633512,0.000819,56906.0,56905.0,1.421417]
[1725545633742,0.000819,56906.0,56905.0,1.557817]
[1725545634238,0.000819,56906.0,56905.0,1.556817]
[1725545634487,0.000819,56906.0,56905.0,1.205355]
[1725545634965,0.000819,56906.0,56905.0,1.556817]
[1725545634966,0.001819,56906.0,56905.0,1.556817]
[1725545635203,0.001819,56906.0,56905.0,1.908279]
[1725545635453,0.175655,56930.0,56911.0,0.361423]
[1725545635697,0.489343,56941.0,56928.0,0.175658]
[1725545635698,0.175645,56933.0,56928.0,0.175658]
[1725545635981,0.175633,56937.0,56930.0,0.175653]
[1725545636218,0.175633,56937.0,56931.0,0.00351261]
[1725545636219,0.351267,56937.0,56931.0,0.00351261]
[1725545636467,0.175648,56932.0,56931.0,0.00351261]
[1725545636731,0.35127,56937.0,56927.0,0.1411]
[1725545636971,0.35127,56937.0,56917.0,0.351385]
[1725545636972,0.00363844,56934.0,56915.0,0.1399]
[1725545637240,0.106695,56936.0,56916.0,0.1657]
[1725545637241,0.00363844,56936.0,56916.0,0.1657]
[1725545637479,0.18993968,56948.0,56916.0,0.1657]
[1725545637480,0.699546,56935.0,56925.0,0.351337]
[1725545637694,0.175645,56933.0,56929.0,0.175655]
[1725545637927,0.351242,56941.0,56926.0,0.37832364]
[1725545637928,0.176449,56938.0,56926.0,0.35532364]
[1725545638155,0.176449,56938.0,56924.0,0.351343]
[1725545638156,0.351294,56933.0,56930.0,0.023]
[1725545638375,0.526953,56931.0,56930.0,0.023]
[1725545638599,0.526953,56931.0,56918.0,0.351379]
[1725545638600,0.526972,56929.0,56928.0,0.023]
[1725545638825,0.526972,56929.0,56918.0,0.351379]
[1725545638826,0.351314,56929.0,56923.0,0.023]
[1725545639087,0.351326,56928.0,56920.0,0.023]
[1725545639306,0.175686,56920.0,56913.0,0.1664]
[1725545639538,0.35133,56927.0,56918.0,0.175689]
[1725545639758,0.175673,56924.0,56919.0,0.175686]
[1725545639988,0.351339,56925.0,56916.0,0.351391]
[1725545640225,0.175711,56912.0,56905.0,0.1664]
[1725545640463,0.1402,56930.0,56907.0,0.351449]
[1725545640464,0.175702,56915.0,56907.0,0.351449]
[1725545640688,0.3514,56916.0,56906.0,0.351454]
[1725545640908,0.351389,56917.0,56905.0,0.1664]
[1725545641147,0.1402,56930.0,56906.0,0.351452]
[1725545641378,0.39056344,56929.0,56905.0,0.1664]
[1725545641614,0.351371,56920.0,56916.0,0.008]
[1725545641836,0.175693,56918.0,56916.0,0.008]
[1725545642059,0.175676,56923.0,56913.0,0.351412]
[1725545642287,0.351336,56926.0,56906.0,0.35632364]
[1725545642515,0.1,56936.0,56906.0,0.35632364]
[1725545642516,0.351303,56931.0,56916.0,0.351393]
[1725545642738,0.175677,56923.0,56919.0,0.175686]
[1725545642967,0.351322,56928.0,56921.0,0.1753]
[1725545643183,0.175674,56924.0,56922.0,0.023]
[1725545643394,0.351283,56935.0,56922.0,0.023]
[1725545643607,0.351301,56932.0,56923.0,0.35486303]
[1725545643829,0.175658,56929.0,56924.0,0.550014]
[1725545644037,0.175658,56929.0,56922.0,0.023]
[1725545644038,0.175662,56928.0,56925.0,0.023]
[1725545644253,0.175666,56926.0,56925.0,0.022]
[1725545644490,0.00363844,56929.0,56913.0,0.1833]
[1725545644708,0.175687,56920.0,56915.0,0.175699]
[1725545644931,0.1442,56937.0,56919.0,0.351375]
[1725545645166,0.175674,56924.0,56918.0,0.351382]
[1725545645443,0.35131,56930.0,56924.0,0.175671]
[1725545645679,0.351272,56936.0,56926.0,0.175666]
[1725545645903,0.32262144,56935.0,56913.0,0.1753]
[1725545646114,0.175694,56917.0,56916.0,0.00163]
[1725545646331,0.527082,56917.0,56916.0,0.00163]
[1725545646606,0.87847,56917.0,56916.0,0.00163]
[1725545646863,1.229858,56917.0,56916.0,0.00163]
[1725545647308,1.581246,56917.0,56916.0,0.00163]
[1725545647560,1.375941,56917.0,56916.0,0.00163]
[1725545647778,1.352402,56917.0,56916.0,0.00163]
[1725545648031,1.70379,56917.0,56916.0,0.00163]
[1725545648245,1.352402,56917.0,56916.0,0.00163]
[1725545648465,1.14968427,56917.0,56916.0,0.00163]
[1725545648674,0.44690827,56917.0,56916.0,0.00163]
[1725545648898,0.79829627,56917.0,56916.0,0.00163]
[1725545649327,1.14968427,56917.0,56916.0,0.00163]
[1725545649537,0.79829627,56917.0,56916.0,0.00163]
[1725545649740,0.79929627,56917.0,56916.0,0.00963]
[1725545649954,1.15068427,56917.0,56916.0,0.00963]
[1725545650184,2.69319927,56917.0,56916.0,0.00963]
[1725545650400,2.84110958,56917.0,56916.0,0.00963]
[1725545650624,3.19249758,56917.0,56916.0,0.00963]
[1725545650838,3.56620296,56917.0,56916.0,0.00963]
[1725545651086,3.22281496,56917.0,56916.0,0.00963]
[1725545651740,3.17490465,56917.0,56916.0,0.00963]
[1725545651968,3.16390465,56917.0,56916.0,0.00163]
[1725545652203,3.17390465,56917.0,56916.0,0.00163]
[1725545652427,3.18790465,56917.0,56916.0,0.00263]
[1725545653106,3.16390465,56917.0,56916.0,0.00163]
[1725545653546,3.17790465,56917.0,56916.0,0.00263]
[1725545653549,3.18790465,56917.0,56916.0,0.00263]
[1725545654944,0.014,56917.0,56916.0,0.30383]
[1725545655171,0.527082,56917.0,56916.0,0.00163]
[1725545655625,0.175694,56917.0,56916.0,0.00163]
[1725545655867,0.123984,56917.0,56916.0,0.00163]
[1725545656112,0.014,56917.0,56916.0,0.00163]
[1725545656355,0.00363844,56920.0,56916.0,0.00163]
[1725545656608,0.000815,56926.0,56916.0,0.00163]
[1725545656864,0.001,56917.0,56916.0,0.00163]
[1725545657096,0.528082,56917.0,56916.0,0.00163]
[1725545657323,1.544858,56917.0,56916.0,0.00163]
[1725545657569,2.798234,56917.0,56916.0,0.00163]
[1725545658229,3.149622,56917.0,56916.0,0.00163]
[1725545658473,3.161622,56917.0,56916.0,0.00163]
[1725545658696,3.159622,56917.0,56916.0,0.00163]
[1725545658924,3.158622,56917.0,56916.0,0.00163]
[1725545659380,0.5,56905.0,56891.0,0.52650515]
[1725545659595,0.175768,56894.0,56891.0,0.52650515]
[1725545659844,0.00363844,56898.0,56892.0,0.52650515]
[1725545660064,0.351482,56902.0,56893.0,0.18]
[1725545660288,0.00363844,56901.0,56893.0,0.18]
[1725545660519,0.175751,56899.0,56893.0,0.18]
[1725545660747,0.00363844,56902.0,56893.0,0.18]
[1725545660973,0.35145,56907.0,56894.0,0.16461518]
[1725545661207,0.175732,56905.0,56896.0,0.175757]
[1725545661431,0.00363844,56904.0,56897.0,0.175756]
[1725545661899,0.00363844,56904.0,56894.0,0.1611]
[1725545661900,0.00363844,56908.0,56894.0,0.1611]
[1725545662122,0.175718,56910.0,56896.0,0.00351468]
[1725545662349,0.175723,56908.0,56897.0,0.023]
[1725545662607,0.275712,56912.0,56901.0,0.351486]
[1725545662833,0.17572,56909.0,56903.0,0.175735]
[1725545663048,0.17572,56909.0,56900.0,0.351492]
[1725545663049,0.175722,56908.0,56901.0,0.175741]
[1725545663274,0.451422,56912.0,56901.0,0.88222967]
[1725545663275,0.005,56902.0,56901.0,0.88222967]
[1725545663499,0.005,56902.0,56901.0,0.90522967]
[1725545663711,0.351407,56914.0,56906.0,0.175726]
[1725545663932,0.183711,56912.0,56906.0,0.175726]
[1725545664397,0.008,56912.0,56908.0,0.1755]
[1725545664608,0.008,56912.0,56911.0,0.527137]
[1725545664850,0.008,56912.0,56909.0,0.13761399]
[1725545664851,0.008,56912.0,56909.0,0.1341]
[1725545665078,0.008,56912.0,56911.0,0.878562]
[1725545665297,0.008,56912.0,56911.0,1.229987]
[1725545665518,0.008,56912.0,56911.0,1.252987]
[1725545665761,0.008,56912.0,56911.0,1.60931064]
[1725545665986,0.351295,56933.0,56920.0,0.351368]
[1725545666240,0.175652,56931.0,56925.0,0.706908]
[1725545666471,0.351272,56936.0,56925.0,1.058247]
[1725545666705,0.351293,56933.0,56925.0,0.354569]
[1725545666942,0.351293,56933.0,56920.0,0.351368]
[1725545666943,0.351308,56930.0,56921.0,0.351363]
[1725545667162,0.176482,56926.0,56922.0,0.175677]
[1725545667399,0.00363844,56925.0,56911.0,0.023]
[1725545667649,0.1757,56915.0,56914.0,0.1796]
[1725545667874,0.175712,56911.0,56910.0,0.023]
[1725545668116,0.486359,56922.0,56907.0,0.1663]
[1725545668117,0.351395,56916.0,56907.0,0.1663]
[1725545668352,0.351346,56924.0,56909.0,0.351437]
[1725545668566,0.351388,56918.0,56910.0,0.02651394]
[1725545668818,0.1,56923.0,56910.0,0.00351394]
[1725545669046,0.1,56923.0,56908.0,0.01651394]
[1725545669267,0.45500712,56922.0,56908.0,0.01651394]
[1725545669531,0.45500712,56922.0,56909.0,0.175717]
[1725545669532,0.175701,56915.0,56909.0,0.175717]
[1725545669779,0.175704,56914.0,56908.0,0.01651394]
[1725545670019,0.175699,56916.0,56909.0,0.175717]
[1725545670264,0.1,56923.0,56911.0,0.351422]
[1725545670265,0.175684,56921.0,56911.0,0.351422]
[1725545670525,0.175682,56921.0,56914.0,0.351406]
[1725545670754,0.35134,56925.0,56916.0,0.351392]
[1725545670986,0.175677,56923.0,56917.0,0.20207994]
[1725545671259,0.17567,56925.0,56920.0,0.175684]
[1725545671487,0.17567,56925.0,56918.0,0.1765]
[1725545671488,0.000815,56926.0,56925.0,0.174669]
[1725545671756,0.000815,56926.0,56921.0,0.1543]
[1725545671978,0.175673,56924.0,56921.0,0.1543]
[1725545672241,0.175677,56923.0,56921.0,0.1543]
[1725545672488,0.175672,56925.0,56921.0,0.023]
[1725545672728,0.000815,56926.0,56922.0,0.175676]
[1725545672958,0.000815,56926.0,56925.0,0.175669]
[1725545673177,0.000815,56926.0,56925.0,0.02638647]
[1725545673424,0.000815,56926.0,56925.0,0.20205547]
[1725545674641,0.000815,56926.0,56925.0,0.20105547]
[1725545674883,0.000815,56926.0,56925.0,0.55239447]
[1725545675113,0.1344,56925.0,56910.0,0.13473]
[1725545675393,1.229987,56911.0,56910.0,0.00163]
[1725545677050,1.746012,56911.0,56910.0,0.00163]
[1725545677314,2.10233564,56911.0,56910.0,0.00163]
[1725545677536,2.05109315,56911.0,56910.0,0.00163]
[1725545678433,2.15471515,56911.0,56910.0,0.00163]
[1725545678882,2.05109315,56911.0,56910.0,0.00163]
[1725545679107,2.27664864,56911.0,56910.0,0.00263]
[1725545679781,2.25845764,56911.0,56910.0,0.00263]
[1725545680013,2.25845764,56911.0,56910.0,0.00163]
[1725545680259,2.25845764,56911.0,56910.0,0.00363]
[1725545680508,2.25945764,56911.0,56910.0,0.00363]
[1725545680721,2.39915764,56911.0,56910.0,0.00363]
[1725545680960,2.39915764,56911.0,56910.0,0.001]
[1725545680961,2.71439864,56911.0,56910.0,0.001]
[1725545681195,2.71439864,56911.0,56867.0,0.01]
[1725545681196,0.527397,56883.0,56882.0,0.167]
[1725545681422,0.527434,56879.0,56878.0,0.1345]
[1725545681657,0.879072,56878.0,56877.0,0.167]
[1725545681891,0.175814,56878.0,56877.0,0.167]
[1725545682145,0.351542,56893.0,56877.0,0.167]
[1725545682415,0.05248996,56896.0,56877.0,0.167]
[1725545682416,0.175786,56888.0,56878.0,0.00239477]
[1725545682641,0.175786,56888.0,56884.0,0.175795]
[1725545682642,0.175785,56888.0,56884.0,0.175795]
[1725545682888,0.351562,56889.0,56882.0,0.3516]
[1725545683112,0.07327729,56902.0,56880.0,0.351617]
[1725545683113,0.05248996,56903.0,56887.0,0.1346]
[1725545683360,0.52650515,56901.0,56888.0,0.02539323]
[1725545683581,0.175772,56892.0,56888.0,0.02539323]
[1725545683851,0.3515,56899.0,56889.0,0.35156]
[1725545684347,0.175769,56893.0,56890.0,0.02539275]
[1725545684351,0.35632364,56893.0,56880.0,0.177]
[1725545684599,0.351578,56887.0,56882.0,0.1758]
[1725545684836,0.57647096,56902.0,56881.0,0.35161]
[1725545685069,0.351518,56897.0,56882.0,0.002393]
[1725545685413,0.351518,56897.0,56881.0,0.351609]
[1725545685414,0.175738,56903.0,56899.0,0.175748]
[1725545685660,0.52650515,56905.0,56887.0,0.351572]
[1725545685901,0.17578,56889.0,56888.0,0.023]
[1725545686134,0.527341,56889.0,56888.0,0.023]
[1725545686368,0.87895,56886.0,56885.0,0.164]
[1725545686595,0.351583,56886.0,56882.0,0.002]
[1725545686829,0.175799,56883.0,56882.0,0.002]
[1725545687317,0.527397,56883.0,56882.0,0.002]
[1725545688039,0.175808,56880.0,56879.0,0.1652]
[1725545688282,0.351574,56887.0,56879.0,0.1652]
[1725545688530,0.351568,56888.0,56880.0,0.0253945]
[1725545688793,0.351574,56887.0,56882.0,0.175801]
[1725545689045,0.351559,56890.0,56883.0,0.023]
[1725545689046,0.351562,56889.0,56883.0,0.023]
[1725545689280,0.351547,56892.0,56883.0,0.022]
[1725545689530,0.175773,56892.0,56885.0,0.351584]
[1725545689769,0.351537,56893.0,56888.0,0.175782]
[1725545690013,0.05249789,56906.0,56893.0,0.1686]
[1725545690254,0.1645,56913.0,56893.0,0.1686]
[1725545690255,0.05249789,56914.0,56898.0,0.351503]
[1725545690494,0.05249789,56914.0,56893.0,0.1686]
[1725545690495,0.35145,56907.0,56900.0,0.351488]
[1725545690747,0.351414,56913.0,56899.0,0.351494]
[1725545691021,0.351462,56906.0,56897.0,0.351508]
[1725545691262,0.351462,56906.0,56898.0,0.023]
[1725545691494,0.175738,56903.0,56899.0,0.175749]
[1725545691721,0.175743,56901.0,56900.0,0.023]
[1725545691958,0.175742,56902.0,56898.0,0.198752]
[1725545692196,0.175731,56905.0,56901.0,0.175741]
[1725545692429,0.1,56916.0,56898.0,0.023]
[1725545692430,0.17572,56909.0,56906.0,0.1804]
[1725545692682,0.05249314,56917.0,56906.0,0.32329036]
[1725545692683,0.351402,56915.0,56906.0,0.32329036]
[1725545692923,0.351402,56915.0,56906.0,0.3209]
[1725545693156,0.18889314,56923.0,56906.0,0.3209]
[1725545693157,0.00439246,56914.0,56906.0,0.1804]
[1725545693417,0.878625,56907.0,56906.0,0.1804]
[1725545693666,0.175737,56903.0,56902.0,0.023]
[1725545693910,0.175737,56903.0,56899.0,0.3198]
[1725545694144,0.351467,56905.0,56899.0,0.3198]
[1725545694411,0.35632364,56918.0,56899.0,0.3198]
[1725545694641,0.52723,56901.0,56900.0,0.023]
[1725545694870,0.527239,56900.0,56899.0,0.3198]
[1725545695089,0.878732,56900.0,56899.0,0.3428]
[1725545695308,0.878732,56900.0,56899.0,0.2023]
[1725545695309,0.175746,56900.0,56899.0,0.2023]
[1725545695545,0.527239,56900.0,56899.0,0.2023]
[1725545695770,0.17574,56902.0,56899.0,0.2023]
[1725545695990,0.05249314,56913.0,56900.0,0.02539154]
[1725545696222,0.001,56901.0,56900.0,0.91712354]
[1725545696704,0.001,56901.0,56900.0,0.036]
[1725545696705,0.176743,56901.0,56900.0,0.036]
[1725545696948,0.351432,56910.0,56900.0,0.036]
[1725545696949,0.175736,56904.0,56900.0,0.198745]
[1725545697165,0.35632364,56913.0,56900.0,0.023]
[1725545697389,0.17574,56902.0,56900.0,0.023]
[1725545697867,0.175739,56903.0,56900.0,0.023]
[1725545698105,0.351472,56904.0,56900.0,0.023]
[1725545698106,0.175741,56902.0,56900.0,0.023]
[1725545698320,0.351439,56909.0,56900.0,0.023]
[1725545698530,0.175735,56904.0,56900.0,0.02539136]
[1725545698682,0.175737,56903.0,56900.0,0.02539136]
[1725545698897,0.351467,56905.0,56900.0,0.023]
[1725545698898,0.175735,56904.0,56900.0,0.023]
[1725545699095,0.351467,56905.0,56900.0,0.023]
[1725545699313,0.351467,56905.0,56900.0,0.022]
[1725545699580,0.175743,56901.0,56900.0,0.022]
[1725545699780,0.878717,56901.0,56900.0,0.022]
[1725545700179,0.175783,56888.0,56887.0,0.1675]
[1725545700797,0.52735,56888.0,56887.0,0.1675]
[1725545700975,0.175805,56881.0,56880.0,0.3]
[1725545701185,0.527416,56881.0,56880.0,0.3]
[1725545701412,0.171,56895.0,56880.0,0.3]
[1725545701619,0.351567,56888.0,56881.0,0.00239433]
[1725545701824,0.05251366,56903.0,56882.0,0.163]
[1725545702030,0.09977606,56905.0,56882.0,0.163]
[1725545702031,0.17576,56896.0,56889.0,0.17578]
[1725545702244,0.05332866,56910.0,56890.0,0.00239297]
[1725545702457,0.17576,56896.0,56892.0,0.1599]
[1725545702663,0.1756,56909.0,56893.0,0.023]
[1725545702897,0.35632364,56906.0,56893.0,0.023]
[1725545703125,0.879717,56901.0,56900.0,0.012]
[1725545703534,1.231204,56901.0,56900.0,0.012]
[1725545703751,1.231204,56901.0,56880.0,0.1325]
[1725545703752,0.351597,56884.0,56880.0,0.1325]
[1725545703983,0.175808,56880.0,56879.0,0.16153]
[1725545704214,0.527425,56880.0,56879.0,0.00163]
[1725545705120,0.351584,56886.0,56879.0,0.00163]
[1725545705348,0.175808,56880.0,56879.0,0.00163]
[1725545705782,0.879042,56880.0,56879.0,0.00163]
[1725545705988,0.527425,56880.0,56879.0,0.00163]
[1725545706215,1.230659,56880.0,56879.0,0.00163]